[Event "Titled Tuesday Blitz May 23 Early 2023"]
[White "Marcziter, Dmitrii"]
[Black "SereneSalmon"]
[WhiteFideId "13900765"]
[WhiteElo "2162"]
[BlackElo "2522"]
[Result "1-0"]
[Round "06"]
[TimeControl "180+2"]
[Date "2023.05.23"]
[WhiteClock "0:01:26"]
[BlackClock "0:00:43"]

1. d4 {[%clk 0:03:00]}  d5 {[%clk 0:02:58]} 2. c4 {[%clk 0:03:00]}  c6 {[%clk 0:02:57]} 3. Nf3 {[%clk 0:02:59]}  e6 {[%clk 0:02:55]} 4. Qc2 {[%clk 0:02:57]}  dxc4 {[%clk 0:02:49]} 5. Qxc4 {[%clk 0:02:56]}  Nf6 {[%clk 0:02:44]} 6. g3 {[%clk 0:02:56]}  Nbd7 {[%clk 0:02:43]} 7. Bg2 {[%clk 0:02:55]}  g6 {[%clk 0:02:44]} 8. O-O {[%clk 0:02:55]}  Bg7 {[%clk 0:02:44]} 9. Qc2 {[%clk 0:02:54]}  O-O {[%clk 0:02:43]} 10. Rd1 {[%clk 0:02:53]}  Qe7 {[%clk 0:02:40]} 11. e4 {[%clk 0:02:50]}  e5 {[%clk 0:02:38]} 12. Nc3 {[%clk 0:02:47]}  exd4 {[%clk 0:02:31]} 13. Nxd4 {[%clk 0:02:47]}  Nc5 {[%clk 0:02:23]} 14. h3 {[%clk 0:02:47]}  Rd8 {[%clk 0:02:23]} 15. Be3 {[%clk 0:02:44]}  Ne6 {[%clk 0:02:22]} 16. Nde2 {[%clk 0:02:31]}  Bd7 {[%clk 0:02:16]} 17. Kh2 {[%clk 0:02:30]}  Be8 {[%clk 0:02:16]} 18. f4 {[%clk 0:02:29]}  b6 {[%clk 0:02:08]} 19. e5 {[%clk 0:02:29]}  Nd5 {[%clk 0:01:55]} 20. Nxd5 {[%clk 0:02:27]}  cxd5 {[%clk 0:01:56]} 21. Bxd5 {[%clk 0:02:23]}  Rac8 {[%clk 0:01:56]} 22. Qe4 {[%clk 0:02:18]}  Nc5 {[%clk 0:01:48]} 23. Qg2 {[%clk 0:02:17]}  h5 {[%clk 0:01:38]} 24. Rac1 {[%clk 0:02:15]}  Bb5 {[%clk 0:01:35]} 25. Nc3 {[%clk 0:02:12]}  Ba6 {[%clk 0:01:32]} 26. Ne4 {[%clk 0:02:00]}  Nxe4 {[%clk 0:01:30]} 27. Rxc8 {[%clk 0:01:55]}  Rxc8 {[%clk 0:01:31]} 28. Bxe4 {[%clk 0:01:53]}  Qb4 {[%clk 0:01:30]} 29. Bd4 {[%clk 0:01:43]}  Qa4 {[%clk 0:01:19]} 30. b3 {[%clk 0:01:40]}  Qa5 {[%clk 0:01:17]} 31. Qd2 {[%clk 0:01:37]}  Qb5 {[%clk 0:01:12]} 32. Bg2 {[%clk 0:01:35]}  Rd8 {[%clk 0:01:09]} 33. Bf1 {[%clk 0:01:31]}  Qa5 {[%clk 0:00:44]} 34. Qxa5 {[%clk 0:01:29]}  bxa5 {[%clk 0:00:45]} 35. Bxa6 {[%clk 0:01:29]}  Bf8 {[%clk 0:00:43]} 36. Be2 {[%clk 0:01:26]} 1-0


[Site "https://www.chess.com"]

[Event "Titled Tuesday Blitz May 23 Early 2023"]
[White "Reprintsev, Alexander"]
[Black "Real_taiatai"]
[WhiteFideId "14100541"]
[WhiteElo "2218"]
[BlackElo "2348"]
[Result "0-1"]
[Round "06"]
[TimeControl "180+2"]
[Date "2023.05.23"]
[WhiteClock "0:00:00"]
[BlackClock "0:00:10"]

1. e4 {[%clk 0:02:32]}  c6 {[%clk 0:02:56]} 2. Nc3 {[%clk 0:02:31]}  d5 {[%clk 0:02:56]} 3. Nf3 {[%clk 0:02:32]}  dxe4 {[%clk 0:02:55]} 4. Nxe4 {[%clk 0:02:31]}  Nf6 {[%clk 0:02:56]} 5. Qe2 {[%clk 0:02:30]}  Nxe4 {[%clk 0:02:55]} 6. Qxe4 {[%clk 0:02:30]}  Nd7 {[%clk 0:02:56]} 7. Bc4 {[%clk 0:02:29]}  Nf6 {[%clk 0:02:46]} 8. Ne5 {[%clk 0:02:29]}  e6 {[%clk 0:02:44]} 9. Qe2 {[%clk 0:02:29]}  Be7 {[%clk 0:02:37]} 10. O-O {[%clk 0:02:28]}  O-O {[%clk 0:02:37]} 11. a4 {[%clk 0:02:26]}  Nd7 {[%clk 0:02:31]} 12. d4 {[%clk 0:02:19]}  Bd6 {[%clk 0:02:07]} 13. f4 {[%clk 0:02:09]}  c5 {[%clk 0:02:04]} 14. c3 {[%clk 0:02:03]}  Qc7 {[%clk 0:02:03]} 15. Bd3 {[%clk 0:02:01]}  cxd4 {[%clk 0:01:53]} 16. cxd4 {[%clk 0:02:01]}  Qb6 {[%clk 0:01:49]} 17. Be3 {[%clk 0:01:59]}  Nf6 {[%clk 0:01:40]} 18. Nc4 {[%clk 0:01:56]}  Qd8 {[%clk 0:01:36]} 19. Rac1 {[%clk 0:01:41]}  Nd5 {[%clk 0:01:28]} 20. Bd2 {[%clk 0:01:39]}  Be7 {[%clk 0:01:24]} 21. Ne5 {[%clk 0:01:38]}  Bf6 {[%clk 0:01:17]} 22. Qe4 {[%clk 0:01:36]}  g6 {[%clk 0:01:15]} 23. Rf3 {[%clk 0:01:34]}  Bg7 {[%clk 0:01:04]} 24. Be1 {[%clk 0:01:18]}  Qb6 {[%clk 0:00:35]} 25. Qe2 {[%clk 0:00:57]}  Qxd4+ {[%clk 0:00:34]} 26. Bf2 {[%clk 0:00:57]}  Qxa4 {[%clk 0:00:23]} 27. Bb5 {[%clk 0:00:54]}  Nxf4 {[%clk 0:00:19]} 28. Qf1 {[%clk 0:00:52]}  Qe4 {[%clk 0:00:14]} 29. Re1 {[%clk 0:00:51]}  Qf5 {[%clk 0:00:08]} 30. Nd3 {[%clk 0:00:41]}  e5 {[%clk 0:00:05]} 31. Bc5 {[%clk 0:00:18]}  a6 {[%clk 0:00:03]} 32. Bxf8 {[%clk 0:00:17]}  Bxf8 {[%clk 0:00:03]} 33. Nxf4 {[%clk 0:00:16]}  exf4 {[%clk 0:00:03]} 34. Bd3 {[%clk 0:00:17]}  Qc5+ {[%clk 0:00:02]} 35. Kh1 {[%clk 0:00:16]}  Bg4 {[%clk 0:00:03]} 36. Rxf4 {[%clk 0:00:16]}  Be6 {[%clk 0:00:04]} 37. b4 {[%clk 0:00:15]}  Qd6 {[%clk 0:00:04]} 38. Bc4 {[%clk 0:00:13]}  Re8 {[%clk 0:00:04]} 39. Bxe6 {[%clk 0:00:13]}  Rxe6 {[%clk 0:00:05]} 40. Rxe6 {[%clk 0:00:12]}  Qxe6 {[%clk 0:00:05]} 41. Rf3 {[%clk 0:00:12]}  Bd6 {[%clk 0:00:06]} 42. Qb1 {[%clk 0:00:11]}  Be5 {[%clk 0:00:06]} 43. g3 {[%clk 0:00:10]}  f5 {[%clk 0:00:06]} 44. Qd3 {[%clk 0:00:10]}  Qc6 {[%clk 0:00:06]} 45. Kg2 {[%clk 0:00:10]}  Kg7 {[%clk 0:00:07]} 46. h4 {[%clk 0:00:09]}  Bf6 {[%clk 0:00:08]} 47. Kh3 {[%clk 0:00:09]}  Qc7 {[%clk 0:00:07]} 48. Qe2 {[%clk 0:00:09]}  Qd7 {[%clk 0:00:07]} 49. Re3 {[%clk 0:00:08]}  f4+ {[%clk 0:00:07]} 50. Re6 {[%clk 0:00:07]}  Kf7 {[%clk 0:00:08]} 51. g4 {[%clk 0:00:04]}  Qxe6 {[%clk 0:00:08]} 52. Qd1 {[%clk 0:00:04]}  Qe3+ {[%clk 0:00:08]} 53. Kg2 {[%clk 0:00:04]}  f3+ {[%clk 0:00:09]} 54. Kg3 {[%clk 0:00:01]}  Be5+ {[%clk 0:00:09]} 55. Kh3 {[%clk 0:00:01]}  f2+ {[%clk 0:00:08]} 56. Kg2 {[%clk 0:00:02]}  Qg3+ {[%clk 0:00:09]} 57. Kf1 {[%clk 0:00:00]}  Qg1+ {[%clk 0:00:10]} 0-1


[Site "https://www.chess.com"]

[Event "Titled Tuesday Blitz May 23 Early 2023"]
[White "Lehtosaari, Mauri"]
[Black "Theytookourjobs"]
[WhiteFideId "501999"]
[WhiteElo "2502"]
[BlackElo "2348"]
[Result "1-0"]
[Round "06"]
[TimeControl "180+2"]
[Date "2023.05.23"]
[WhiteClock "0:00:26"]
[BlackClock "0:00:01"]

1. d4 {[%clk 0:03:00]}  e6 {[%clk 0:02:58]} 2. Nf3 {[%clk 0:02:56]}  f5 {[%clk 0:02:58]} 3. Bf4 {[%clk 0:02:54]}  Nf6 {[%clk 0:02:54]} 4. e3 {[%clk 0:02:51]}  Bd6 {[%clk 0:02:55]} 5. c4 {[%clk 0:02:44]}  Bxf4 {[%clk 0:02:54]} 6. exf4 {[%clk 0:02:45]}  O-O {[%clk 0:02:53]} 7. Nc3 {[%clk 0:02:45]}  Ne4 {[%clk 0:02:50]} 8. Bd3 {[%clk 0:02:39]}  Nxc3 {[%clk 0:02:44]} 9. bxc3 {[%clk 0:02:39]}  b6 {[%clk 0:02:35]} 10. Qe2 {[%clk 0:02:35]}  Bb7 {[%clk 0:02:30]} 11. h3 {[%clk 0:02:35]}  Nc6 {[%clk 0:02:24]} 12. Ne5 {[%clk 0:02:18]}  Qe7 {[%clk 0:02:00]} 13. O-O {[%clk 0:02:01]}  Rae8 {[%clk 0:01:09]} 14. Qe3 {[%clk 0:01:56]}  d6 {[%clk 0:01:01]} 15. Nxc6 {[%clk 0:01:54]}  Bxc6 {[%clk 0:01:02]} 16. Rfe1 {[%clk 0:01:45]}  Qf6 {[%clk 0:01:01]} 17. Be2 {[%clk 0:01:40]}  e5 {[%clk 0:01:00]} 18. fxe5 {[%clk 0:01:36]}  dxe5 {[%clk 0:00:59]} 19. d5 {[%clk 0:01:32]}  Bb7 {[%clk 0:00:59]} 20. Rad1 {[%clk 0:01:22]}  Qd6 {[%clk 0:00:56]} 21. Qd2 {[%clk 0:01:15]}  Rd8 {[%clk 0:00:48]} 22. f4 {[%clk 0:01:07]}  c6 {[%clk 0:00:35]} 23. fxe5 {[%clk 0:01:03]}  Qxe5 {[%clk 0:00:35]} 24. Bf3 {[%clk 0:01:02]}  Qc7 {[%clk 0:00:31]} 25. d6 {[%clk 0:00:58]}  Qc8 {[%clk 0:00:23]} 26. Re7 {[%clk 0:00:56]}  Rd7 {[%clk 0:00:22]} 27. Qg5 {[%clk 0:00:51]}  Rf7 {[%clk 0:00:16]} 28. Rde1 {[%clk 0:00:51]}  Rdxe7 {[%clk 0:00:12]} 29. Rxe7 {[%clk 0:00:45]}  Qf8 {[%clk 0:00:08]} 30. Rxf7 {[%clk 0:00:34]}  Qxf7 {[%clk 0:00:07]} 31. Qd8+ {[%clk 0:00:33]}  Qf8 {[%clk 0:00:07]} 32. Qc7 {[%clk 0:00:31]}  Qc8 {[%clk 0:00:05]} 33. Qe7 {[%clk 0:00:31]}  Qf8 {[%clk 0:00:03]} 34. Qxb7 {[%clk 0:00:27]}  Qxd6 {[%clk 0:00:03]} 35. Qc8+ {[%clk 0:00:25]}  Kf7 {[%clk 0:00:03]} 36. Qxf5+ {[%clk 0:00:26]}  Ke8 {[%clk 0:00:03]} 37. Qe4+ {[%clk 0:00:26]}  Kd8 {[%clk 0:00:01]} 38. Qd4 {[%clk 0:00:26]} 1-0


[Site "https://www.chess.com"]

[Event "Titled Tuesday Blitz May 23 Early 2023"]
[White "Estremera Panos, Sergio"]
[Black "Fernandez Siles, Luis"]
[WhiteFideId "2200864"]
[BlackFideId "2209420"]
[WhiteElo "2253"]
[BlackElo "2195"]
[Result "1/2-1/2"]
[Round "06"]
[TimeControl "180+2"]
[Date "2023.05.23"]
[WhiteClock "0:00:19"]
[BlackClock "0:00:10"]

1. d4 {[%clk 0:03:00]}  Nf6 {[%clk 0:02:59]} 2. c4 {[%clk 0:02:56]}  g6 {[%clk 0:02:57]} 3. Nc3 {[%clk 0:02:53]}  Bg7 {[%clk 0:02:57]} 4. e4 {[%clk 0:02:52]}  d6 {[%clk 0:02:55]} 5. Be2 {[%clk 0:02:50]}  O-O {[%clk 0:02:54]} 6. Nf3 {[%clk 0:02:51]}  c5 {[%clk 0:02:54]} 7. d5 {[%clk 0:02:51]}  e6 {[%clk 0:02:52]} 8. O-O {[%clk 0:02:48]}  exd5 {[%clk 0:02:49]} 9. cxd5 {[%clk 0:02:49]}  a6 {[%clk 0:02:49]} 10. a4 {[%clk 0:02:48]}  Bg4 {[%clk 0:02:49]} 11. Nd2 {[%clk 0:02:44]}  Bxe2 {[%clk 0:02:48]} 12. Qxe2 {[%clk 0:02:45]}  Nbd7 {[%clk 0:02:43]} 13. h3 {[%clk 0:02:40]}  Re8 {[%clk 0:02:33]} 14. Nc4 {[%clk 0:02:36]}  Nb6 {[%clk 0:02:25]} 15. Bf4 {[%clk 0:02:28]}  Nxc4 {[%clk 0:02:13]} 16. Qxc4 {[%clk 0:02:28]}  b5 {[%clk 0:02:03]} 17. axb5 {[%clk 0:02:26]}  axb5 {[%clk 0:02:02]} 18. Qxb5 {[%clk 0:02:03]}  Rb8 {[%clk 0:01:37]} 19. Qe2 {[%clk 0:01:53]}  Nxe4 {[%clk 0:01:21]} 20. Nxe4 {[%clk 0:01:50]}  f5 {[%clk 0:01:21]} 21. Qa6 {[%clk 0:01:18]}  Rb6 {[%clk 0:01:12]} 22. Bg5 {[%clk 0:00:37]}  Rxa6 {[%clk 0:00:54]} 23. Bxd8 {[%clk 0:00:37]}  Rxa1 {[%clk 0:00:54]} 24. Rxa1 {[%clk 0:00:38]}  fxe4 {[%clk 0:00:41]} 25. Bc7 {[%clk 0:00:32]}  Bxb2 {[%clk 0:00:41]} 26. Ra6 {[%clk 0:00:29]}  c4 {[%clk 0:00:38]} 27. Bxd6 {[%clk 0:00:23]}  c3 {[%clk 0:00:38]} 28. Rc6 {[%clk 0:00:22]}  Rd8 {[%clk 0:00:26]} 29. Bb4 {[%clk 0:00:18]}  Rxd5 {[%clk 0:00:25]} 30. Kh2 {[%clk 0:00:18]}  Rd3 {[%clk 0:00:20]} 31. Rc8+ {[%clk 0:00:18]}  Kf7 {[%clk 0:00:20]} 32. Rc7+ {[%clk 0:00:18]}  Ke6 {[%clk 0:00:21]} 33. g3 {[%clk 0:00:16]}  Kd5 {[%clk 0:00:18]} 34. Ba5 {[%clk 0:00:14]}  Kd4 {[%clk 0:00:17]} 35. Bb6+ {[%clk 0:00:14]}  Kd5 {[%clk 0:00:17]} 36. Ba5 {[%clk 0:00:15]}  Rd2 {[%clk 0:00:15]} 37. Rd7+ {[%clk 0:00:14]}  Kc4 {[%clk 0:00:14]} 38. Rxd2 {[%clk 0:00:15]}  cxd2 {[%clk 0:00:13]} 39. Bxd2 {[%clk 0:00:15]}  Kd3 {[%clk 0:00:11]} 40. Be3 {[%clk 0:00:15]}  Ke2 {[%clk 0:00:09]} 41. Kg2 {[%clk 0:00:16]}  Bc3 {[%clk 0:00:08]} 42. Ba7 {[%clk 0:00:16]}  Be1 {[%clk 0:00:08]} 43. Be3 {[%clk 0:00:16]}  h5 {[%clk 0:00:09]} 44. Ba7 {[%clk 0:00:16]}  Bd2 {[%clk 0:00:09]} 45. Bb6 {[%clk 0:00:16]}  e3 {[%clk 0:00:09]} 46. fxe3 {[%clk 0:00:16]}  Bxe3 {[%clk 0:00:10]} 47. Bc7 {[%clk 0:00:16]}  g5 {[%clk 0:00:08]} 48. Bd8 {[%clk 0:00:16]}  g4 {[%clk 0:00:08]} 49. hxg4 {[%clk 0:00:16]}  hxg4 {[%clk 0:00:09]} 50. Bc7 {[%clk 0:00:16]}  Bd2 {[%clk 0:00:10]} 51. Bb8 {[%clk 0:00:17]}  Be3 {[%clk 0:00:10]} 52. Bc7 {[%clk 0:00:18]}  Bd2 {[%clk 0:00:10]} 53. Bb8 {[%clk 0:00:18]}  Be3 {[%clk 0:00:10]} 54. Bc7 {[%clk 0:00:19]} 1/2-1/2


[Site "https://www.chess.com"]

[Event "Titled Tuesday Blitz May 23 Early 2023"]
[White "Weetik, Vjacheslav"]
[Black "Wimalasuriya, Kasun M."]
[WhiteFideId "4153472"]
[BlackFideId "9906789"]
[WhiteElo "2469"]
[BlackElo "2295"]
[Result "1-0"]
[Round "06"]
[TimeControl "180+2"]
[Date "2023.05.23"]
[WhiteClock "0:00:03"]
[BlackClock "0:00:23"]

1. d4 {[%clk 0:02:59]}  Nf6 {[%clk 0:02:58]} 2. c4 {[%clk 0:02:59]}  g6 {[%clk 0:02:57]} 3. Nc3 {[%clk 0:02:59]}  d5 {[%clk 0:02:56]} 4. cxd5 {[%clk 0:02:53]}  Nxd5 {[%clk 0:02:55]} 5. e4 {[%clk 0:02:51]}  Nxc3 {[%clk 0:02:54]} 6. bxc3 {[%clk 0:02:52]}  Bg7 {[%clk 0:02:54]} 7. Bg5 {[%clk 0:02:52]}  O-O {[%clk 0:02:53]} 8. Nf3 {[%clk 0:02:51]}  c5 {[%clk 0:02:53]} 9. Rc1 {[%clk 0:02:51]}  Nc6 {[%clk 0:02:51]} 10. d5 {[%clk 0:02:51]}  Na5 {[%clk 0:02:47]} 11. Qd2 {[%clk 0:02:36]}  b6 {[%clk 0:02:41]} 12. h3 {[%clk 0:02:26]}  Qd6 {[%clk 0:02:23]} 13. Bd3 {[%clk 0:02:07]}  e6 {[%clk 0:02:21]} 14. c4 {[%clk 0:02:06]}  exd5 {[%clk 0:02:14]} 15. cxd5 {[%clk 0:02:05]}  Re8 {[%clk 0:02:11]} 16. O-O {[%clk 0:02:05]}  c4 {[%clk 0:02:05]} 17. Bb1 {[%clk 0:02:00]}  Ba6 {[%clk 0:02:02]} 18. Rfe1 {[%clk 0:01:55]}  Rac8 {[%clk 0:01:54]} 19. Bf4 {[%clk 0:01:34]}  Qd7 {[%clk 0:01:50]} 20. e5 {[%clk 0:01:32]}  Rc5 {[%clk 0:01:44]} 21. Be4 {[%clk 0:01:12]}  Bb7 {[%clk 0:01:36]} 22. Red1 {[%clk 0:01:03]}  Rd8 {[%clk 0:01:22]} 23. Be3 {[%clk 0:00:52]}  Rcc8 {[%clk 0:01:19]} 24. Qc2 {[%clk 0:00:36]}  Qe8 {[%clk 0:01:14]} 25. Bg5 {[%clk 0:00:35]}  Rd7 {[%clk 0:01:14]} 26. Bf4 {[%clk 0:00:18]}  Rc5 {[%clk 0:01:11]} 27. Be3 {[%clk 0:00:17]}  Rc8 {[%clk 0:01:11]} 28. Rd4 {[%clk 0:00:15]}  Rcd8 {[%clk 0:01:07]} 29. Rcd1 {[%clk 0:00:14]}  Bxe5 {[%clk 0:01:07]} 30. Nxe5 {[%clk 0:00:14]}  Qxe5 {[%clk 0:01:07]} 31. Bf3 {[%clk 0:00:09]}  Bxd5 {[%clk 0:01:02]} 32. Qa4 {[%clk 0:00:06]}  Bxf3 {[%clk 0:00:34]} 33. Rxd7 {[%clk 0:00:06]}  Rxd7 {[%clk 0:00:35]} 34. Rxd7 {[%clk 0:00:06]}  Bc6 {[%clk 0:00:35]} 35. Rd8+ {[%clk 0:00:05]}  Kg7 {[%clk 0:00:35]} 36. Qd1 {[%clk 0:00:05]}  Qe7 {[%clk 0:00:30]} 37. Qd4+ {[%clk 0:00:04]}  f6 {[%clk 0:00:29]} 38. Rd6 {[%clk 0:00:03]}  g5 {[%clk 0:00:28]} 39. Bxg5 {[%clk 0:00:03]}  Qe1+ {[%clk 0:00:28]} 40. Kh2 {[%clk 0:00:04]}  Qe5+ {[%clk 0:00:27]} 41. Qxe5 {[%clk 0:00:04]}  fxe5 {[%clk 0:00:28]} 42. Bd2 {[%clk 0:00:04]}  Be8 {[%clk 0:00:25]} 43. Bxa5 {[%clk 0:00:04]}  bxa5 {[%clk 0:00:23]} 44. Ra6 {[%clk 0:00:03]} 1-0


[Site "https://www.chess.com"]

[Event "Titled Tuesday Blitz May 23 Early 2023"]
[White "Bogaudinov, Rushan"]
[Black "Camilla_Lee"]
[WhiteFideId "4129288"]
[WhiteElo "1941"]
[BlackElo "2670"]
[Result "0-1"]
[Round "06"]
[TimeControl "180+2"]
[Date "2023.05.23"]
[WhiteClock "0:00:00"]
[BlackClock "0:02:08"]

1. e4 {[%clk 0:03:00]}  e5 {[%clk 0:02:42]} 2. Nc3 {[%clk 0:02:58]}  Nf6 {[%clk 0:02:42]} 3. g3 {[%clk 0:02:58]}  Nc6 {[%clk 0:02:42]} 4. Bg2 {[%clk 0:02:58]}  Bc5 {[%clk 0:02:38]} 5. d3 {[%clk 0:02:53]}  d6 {[%clk 0:02:37]} 6. Na4 {[%clk 0:02:53]}  Be6 {[%clk 0:02:29]} 7. Nf3 {[%clk 0:02:45]}  h6 {[%clk 0:02:25]} 8. O-O {[%clk 0:02:45]}  Qd7 {[%clk 0:02:25]} 9. Nxc5 {[%clk 0:02:36]}  dxc5 {[%clk 0:02:26]} 10. Be3 {[%clk 0:02:36]}  b6 {[%clk 0:02:26]} 11. Qd2 {[%clk 0:02:24]}  Bh3 {[%clk 0:02:21]} 12. Nh4 {[%clk 0:02:07]}  Bxg2 {[%clk 0:02:14]} 13. Kxg2 {[%clk 0:02:04]}  O-O-O {[%clk 0:02:14]} 14. a4 {[%clk 0:02:00]}  Nxe4 {[%clk 0:02:12]} 15. Qe2 {[%clk 0:00:00]}  Nd6 {[%clk 0:02:08]} 0-1


[Site "https://www.chess.com"]

[Event "Titled Tuesday Blitz May 23 Early 2023"]
[White "Sargissyan, Sargis"]
[Black "Hua, Lefong"]
[WhiteFideId "13303210"]
[BlackFideId "2602253"]
[WhiteElo "2109"]
[BlackElo "2626"]
[Result "1/2-1/2"]
[Round "06"]
[TimeControl "180+2"]
[Date "2023.05.23"]
[WhiteClock "0:00:05"]
[BlackClock "0:00:16"]

1. e4 {[%clk 0:03:00]}  c5 {[%clk 0:02:59]} 2. Nf3 {[%clk 0:03:00]}  g6 {[%clk 0:03:00]} 3. d4 {[%clk 0:03:01]}  cxd4 {[%clk 0:03:00]} 4. Qxd4 {[%clk 0:03:00]}  Nf6 {[%clk 0:03:00]} 5. Bb5 {[%clk 0:02:52]}  a6 {[%clk 0:02:50]} 6. e5 {[%clk 0:02:52]}  axb5 {[%clk 0:02:46]} 7. exf6 {[%clk 0:02:52]}  Nc6 {[%clk 0:02:47]} 8. Qd3 {[%clk 0:02:44]}  d5 {[%clk 0:02:40]} 9. O-O {[%clk 0:02:31]}  e6 {[%clk 0:02:36]} 10. Qxb5 {[%clk 0:02:22]}  Qxf6 {[%clk 0:02:31]} 11. Bg5 {[%clk 0:02:13]}  Qf5 {[%clk 0:02:31]} 12. Nd4 {[%clk 0:02:04]}  Qxg5 {[%clk 0:02:19]} 13. Nxc6 {[%clk 0:02:04]}  Bd7 {[%clk 0:02:19]} 14. Qxb7 {[%clk 0:02:05]}  Rc8 {[%clk 0:02:19]} 15. Na7 {[%clk 0:01:32]}  Rxc2 {[%clk 0:02:14]} 16. Na3 {[%clk 0:01:32]}  Bxa3 {[%clk 0:02:07]} 17. bxa3 {[%clk 0:01:32]}  Qd8 {[%clk 0:02:06]} 18. Rfc1 {[%clk 0:00:41]}  Rxc1+ {[%clk 0:02:05]} 19. Rxc1 {[%clk 0:00:42]}  O-O {[%clk 0:02:05]} 20. Rc7 {[%clk 0:00:42]}  Be8 {[%clk 0:02:06]} 21. Rc8 {[%clk 0:00:34]}  Qd7 {[%clk 0:01:57]} 22. Qb8 {[%clk 0:00:32]}  d4 {[%clk 0:01:50]} 23. Rd8 {[%clk 0:00:22]}  Qa4 {[%clk 0:01:50]} 24. h3 {[%clk 0:00:20]}  Qxa3 {[%clk 0:01:39]} 25. Nc8 {[%clk 0:00:19]}  Ba4 {[%clk 0:01:17]} 26. Rxf8+ {[%clk 0:00:08]}  Qxf8 {[%clk 0:01:17]} 27. Ne7+ {[%clk 0:00:09]}  Kg7 {[%clk 0:01:18]} 28. Qe5+ {[%clk 0:00:10]}  f6 {[%clk 0:01:11]} 29. Qxd4 {[%clk 0:00:09]}  Qxe7 {[%clk 0:01:09]} 30. Qxa4 {[%clk 0:00:09]}  h5 {[%clk 0:01:07]} 31. Qb5 {[%clk 0:00:08]}  Qc7 {[%clk 0:00:59]} 32. g3 {[%clk 0:00:06]}  h4 {[%clk 0:00:58]} 33. gxh4 {[%clk 0:00:06]}  Qc1+ {[%clk 0:00:58]} 34. Kg2 {[%clk 0:00:06]}  e5 {[%clk 0:00:54]} 35. a4 {[%clk 0:00:06]}  Qf4 {[%clk 0:00:50]} 36. a5 {[%clk 0:00:05]}  e4 {[%clk 0:00:51]} 37. Qb7+ {[%clk 0:00:05]}  Kh6 {[%clk 0:00:50]} 38. Qb6 {[%clk 0:00:05]}  Qf3+ {[%clk 0:00:48]} 39. Kg1 {[%clk 0:00:05]}  Qd1+ {[%clk 0:00:48]} 40. Kg2 {[%clk 0:00:05]}  Qf3+ {[%clk 0:00:48]} 41. Kg1 {[%clk 0:00:06]}  Qd1+ {[%clk 0:00:48]} 42. Kh2 {[%clk 0:00:07]}  f5 {[%clk 0:00:43]} 43. Qe3+ {[%clk 0:00:06]}  Kh7 {[%clk 0:00:41]} 44. a6 {[%clk 0:00:06]}  Qd6+ {[%clk 0:00:41]} 45. Kg2 {[%clk 0:00:05]}  Qxa6 {[%clk 0:00:41]} 46. Qg5 {[%clk 0:00:05]}  Qb7 {[%clk 0:00:36]} 47. Kh2 {[%clk 0:00:04]}  Qc7+ {[%clk 0:00:36]} 48. Kg2 {[%clk 0:00:04]}  Qf7 {[%clk 0:00:35]} 49. Kg3 {[%clk 0:00:03]}  Qc7+ {[%clk 0:00:34]} 50. Kg2 {[%clk 0:00:03]}  Qg7 {[%clk 0:00:28]} 51. Kg3 {[%clk 0:00:03]}  Qf7 {[%clk 0:00:25]} 52. Kg2 {[%clk 0:00:03]}  f4 {[%clk 0:00:26]} 53. Qg4 {[%clk 0:00:02]}  Qf5 {[%clk 0:00:23]} 54. Qg5 {[%clk 0:00:01]}  Kg7 {[%clk 0:00:20]} 55. Kf1 {[%clk 0:00:01]}  Qxg5 {[%clk 0:00:18]} 56. hxg5 {[%clk 0:00:01]}  Kf7 {[%clk 0:00:18]} 57. h4 {[%clk 0:00:02]}  Ke6 {[%clk 0:00:19]} 58. f3 {[%clk 0:00:01]}  exf3 {[%clk 0:00:15]} 59. Kf2 {[%clk 0:00:01]}  Ke5 {[%clk 0:00:16]} 60. Kxf3 {[%clk 0:00:02]}  Kf5 {[%clk 0:00:16]} 61. h5 {[%clk 0:00:02]}  gxh5 {[%clk 0:00:16]} 62. g6 {[%clk 0:00:03]}  Kxg6 {[%clk 0:00:15]} 63. Kxf4 {[%clk 0:00:04]}  h4 {[%clk 0:00:15]} 64. Kg4 {[%clk 0:00:04]}  h3 {[%clk 0:00:16]} 65. Kxh3 {[%clk 0:00:05]} 1/2-1/2


[Site "https://www.chess.com"]

[Event "Titled Tuesday Blitz May 23 Early 2023"]
[White "Gatterer, Florian"]
[Black "koncheto"]
[WhiteFideId "811688"]
[WhiteElo "2221"]
[BlackElo "2606"]
[Result "0-1"]
[Round "06"]
[TimeControl "180+2"]
[Date "2023.05.23"]
[WhiteClock "0:00:00"]
[BlackClock "0:00:19"]

1. b3 {[%clk 0:03:00]}  d5 {[%clk 0:02:56]} 2. Bb2 {[%clk 0:03:00]}  Nf6 {[%clk 0:02:57]} 3. Nf3 {[%clk 0:02:59]}  Bf5 {[%clk 0:02:57]} 4. d3 {[%clk 0:02:58]}  e6 {[%clk 0:02:58]} 5. Nh4 {[%clk 0:02:53]}  Bg6 {[%clk 0:02:58]} 6. Nxg6 {[%clk 0:02:53]}  hxg6 {[%clk 0:02:59]} 7. g3 {[%clk 0:02:53]}  c5 {[%clk 0:02:57]} 8. Bg2 {[%clk 0:02:52]}  Nc6 {[%clk 0:02:57]} 9. Nd2 {[%clk 0:02:51]}  Be7 {[%clk 0:02:58]} 10. e4 {[%clk 0:02:45]}  Rc8 {[%clk 0:02:56]} 11. a3 {[%clk 0:02:45]}  b6 {[%clk 0:02:56]} 12. O-O {[%clk 0:02:40]}  O-O {[%clk 0:02:55]} 13. e5 {[%clk 0:02:34]}  Nd7 {[%clk 0:02:51]} 14. Qe2 {[%clk 0:02:33]}  Nd4 {[%clk 0:02:41]} 15. Bxd4 {[%clk 0:02:21]}  cxd4 {[%clk 0:02:41]} 16. Nf3 {[%clk 0:02:22]}  Qc7 {[%clk 0:02:38]} 17. Nxd4 {[%clk 0:02:13]}  Qxe5 {[%clk 0:02:36]} 18. Qxe5 {[%clk 0:01:51]}  Nxe5 {[%clk 0:02:36]} 19. a4 {[%clk 0:01:45]}  Bf6 {[%clk 0:02:34]} 20. Nb5 {[%clk 0:01:22]}  a6 {[%clk 0:02:33]} 21. Na3 {[%clk 0:01:21]}  Nxd3 {[%clk 0:02:32]} 22. cxd3 {[%clk 0:01:18]}  Bxa1 {[%clk 0:02:32]} 23. Rxa1 {[%clk 0:01:18]}  Rc3 {[%clk 0:02:33]} 24. Bf1 {[%clk 0:01:07]}  Rxb3 {[%clk 0:02:27]} 25. d4 {[%clk 0:01:02]}  Ra8 {[%clk 0:02:12]} 26. Nc2 {[%clk 0:00:56]}  Kf8 {[%clk 0:02:07]} 27. Ne3 {[%clk 0:00:46]}  Rc8 {[%clk 0:01:51]} 28. Bxa6 {[%clk 0:00:42]}  Ra8 {[%clk 0:01:52]} 29. Bf1 {[%clk 0:00:32]}  Rb4 {[%clk 0:01:52]} 30. Rc1 {[%clk 0:00:31]}  Rbxa4 {[%clk 0:01:43]} 31. Rc7 {[%clk 0:00:30]}  R8a7 {[%clk 0:01:37]} 32. Rc8+ {[%clk 0:00:28]}  Ke7 {[%clk 0:01:37]} 33. Rc6 {[%clk 0:00:27]}  Rb7 {[%clk 0:01:33]} 34. Bb5 {[%clk 0:00:19]}  Rxd4 {[%clk 0:01:33]} 35. Ba6 {[%clk 0:00:18]}  Rb8 {[%clk 0:01:11]} 36. Rc7+ {[%clk 0:00:18]}  Kf8 {[%clk 0:01:11]} 37. Ng4 {[%clk 0:00:14]}  Rxg4 {[%clk 0:01:10]} 38. f4 {[%clk 0:00:13]}  b5 {[%clk 0:00:49]} 39. Kg2 {[%clk 0:00:13]}  b4 {[%clk 0:00:24]} 40. Kf3 {[%clk 0:00:00]}  b3 {[%clk 0:00:19]} 0-1


[Site "https://www.chess.com"]